bitfinex-derivatives/quotes_SOLF0:USTF0_20251006
["timestamp","ask_amount","ask_price","bid_price","bid_amount"]
[1759732755304,5.24,234.55,234.52,3.61319917]
[1759732755604,113.35247807,234.57,234.53,3.61319917]
[1759732755809,113.35247807,234.57,234.54,3.61319917]
[1759732756008,112.14,234.57,234.55,3.61319917]
[1759732756210,112.14,234.57,234.48,7.63]
[1759732756211,113.35247807,234.57,234.56,3.61319917]
[1759732756412,117.18827807,234.57,234.56,3.61319917]
[1759732758204,106.9,234.57,234.56,3.61319917]
[1759732758513,106.84,234.57,234.56,3.61319917]
[1759732762313,5.22,234.56,234.44,7.41]
[1759732762514,1.21247807,234.51,234.44,7.41]
[1759732763417,5.04907807,234.51,234.44,7.41]
[1759732763616,106.8,234.52,234.44,7.41]
[1759732763913,106.8,234.52,234.46,7.41]
[1759732766619,6.43247807,234.51,234.42,3.8379]
[1759732767711,3.8368,234.5,234.42,3.8379]
[1759732768111,6.43247807,234.51,234.42,3.8379]
[1759732769720,10.26927807,234.51,234.42,3.8379]
[1759732770419,6.43247807,234.51,234.43,3.8378]
[1759732770618,6.43247807,234.51,234.44,7.41]
[1759732771918,3.8359,234.56,234.47,7.41]
[1759732773119,5.22,234.57,234.47,7.41]
[1759732773422,5.22,234.57,234.4,59.7078]
[1759732773423,5.22,234.5,234.41,7.41]
[1759732773622,1.21247807,234.49,234.41,7.41]
[1759732774016,5.22,234.5,234.41,7.41]
[1759732774316,20.06,234.53,234.44,7.75]
[1759732774828,20.06,234.53,234.45,3.8374]
[1759732776127,5.22,234.55,234.46,3.8373]
[1759732776320,5.22,234.55,234.47,7.75]
[1759732777631,5.22,234.55,234.48,3.8371]
[1759732777830,3.8356,234.58,234.48,3.8371]
[1759732782433,3.8358,234.56,234.47,7.75]
[1759732783426,9.0561,234.55,234.47,7.75]
[1759732783824,5.22,234.55,234.47,7.75]
[1759732784231,3.8362,234.54,234.47,7.75]
[1759732784430,1.21247807,234.53,234.47,7.75]
[1759732784934,5.22,234.52,234.43,7.75]
[1759732785936,3.8366,234.51,234.43,11.5878]
[1759732786133,3.8366,234.51,234.43,7.75]
[1759732786836,3.8369,234.5,234.43,7.75]
[1759732787043,5.22,234.49,234.39,8.96247807]
[1759732787731,5.22,234.49,234.39,7.75]
[1759732788129,1.21247807,234.47,234.39,7.75]
[1759732788331,9.0774,234.46,234.39,7.75]
[1759732789128,5.24,234.46,234.39,7.75]
[1759732792437,3.8376,234.45,234.39,7.75]
[1759732794338,5.24,234.46,234.39,7.75]
[1759732795542,9.0774,234.46,234.39,7.75]
[1759732801249,3.8371,234.49,234.41,7.34]
[1759732801743,96.73226072,234.51,234.41,7.34]
[1759732802244,3.8369,234.5,234.41,7.34]
[1759732802548,96.73226072,234.51,234.41,7.34]
[1759732802743,5.24,234.51,234.43,7.34]
[1759732802950,3.8366,234.51,234.43,7.34]
[1759732803150,315.62,234.58,234.43,7.34]
[1759732803350,317.51226072,234.58,234.48,7.34]
[1759732803853,3.8359,234.56,234.48,7.34]
[1759732804043,312.27226072,234.58,234.48,7.34]
[1759732804247,3.8361,234.55,234.48,7.34]
[1759732807061,3.8362,234.54,234.48,7.34]
[1759732808358,3.8364,234.53,234.48,7.34]
[1759732808560,9.0764,234.53,234.47,7.34]
[1759732808758,1.89226072,234.57,234.47,7.34]
[1759732809959,310.38,234.58,234.47,10.82382046]
[1759732810256,310.38,234.58,234.44,66.26514856]
[1759732810257,310.38,234.58,234.49,3.48382046]
[1759732810457,310.38,234.58,234.5,7.34]
[1759732810664,5.24,234.59,234.5,7.34]
[1759732811254,64.9034,234.58,234.47,3.48382046]
[1759732811456,5.24,234.55,234.45,10.82382046]
[1759732812358,5.24,234.55,234.45,7.34]
[1759732812557,3.8364,234.53,234.45,7.34]
[1759732813254,3.836,234.55,234.47,7.34]
[1759732814565,3.836,234.55,234.47,11.1771]
[1759732814962,3.8363,234.53,234.47,7.34]
[1759732815264,5.24,234.54,234.43,10.82382046]
[1759732816168,3.8365,234.52,234.44,3.48382046]
[1759732816367,3.8365,234.52,234.45,7.34]
[1759732817071,3.8367,234.51,234.45,7.34]
[1759732822466,3.8369,234.5,234.45,7.34]
[1759732822664,3.8369,234.5,234.44,10.90382046]
[1759732823966,3.8369,234.5,234.44,7.32142046]
[1759732824174,3.8374,234.47,234.44,3.48382046]
[1759732824473,3.8374,234.47,234.44,7.42]
[1759732825166,3.8376,234.46,234.42,3.48382046]
[1759732825467,5.24,234.48,234.4,3.48382046]
[1759732825875,3.8373,234.47,234.4,3.48382046]
[1759732826869,3.8373,234.47,234.41,7.42]
[1759732827169,3.8375,234.46,234.41,7.42]
[1759732827367,9.0775,234.46,234.41,7.42]
[1759732827562,9.0775,234.46,234.4,10.90382046]
[1759732827772,3.8377,234.45,234.4,10.90382046]
[1759732828461,3.8377,234.45,234.41,7.42]
[1759732828671,3.8373,234.47,234.41,7.42]
[1759732828962,5.24,234.47,234.4,3.48382046]
[1759732829169,5.24,234.47,234.39,3.48382046]
[1759732829364,9.078,234.43,234.39,3.48382046]
[1759732829764,5.24,234.43,234.39,3.48382046]
[1759732830577,5.24,234.43,234.39,10.90382046]
[1759732830870,5.24,234.43,234.39,7.42]
[1759732831463,3.8379,234.44,234.38,7.42]
[1759732835680,9.0774,234.47,234.38,7.89]
[1759732835976,5.24,234.58,234.43,3.8377]
[1759732836182,5.24,234.58,234.45,11.37382046]
[1759732836370,5.24,234.58,234.45,7.89]
[1759732836575,5.24,234.58,234.45,9.78226072]
[1759732836778,59.6658,234.57,234.45,9.78226072]
[1759732837080,106.86,234.56,234.45,9.78226072]
[1759732837273,5.24,234.55,234.45,9.78226072]
[1759732837479,5.24,234.55,234.45,7.89]
[1759732838184,5.24,234.55,234.43,3.48382046]
[1759732838377,59.68,234.52,234.38,11.37382046]
[1759732838583,5.24,234.5,234.38,7.89]
[1759732838784,5.24,234.5,234.38,9.78226072]
[1759732839282,5.24,234.5,234.38,13.26608118]
[1759732839487,5.24,234.5,234.39,3.48382046]
[1759732839980,59.6658,234.57,234.43,7.89]
[1759732840284,112.12,234.56,234.43,7.89]
[1759732840783,5.24,234.56,234.44,11.37382046]
[1759732840983,5.24,234.56,234.46,7.89]
[1759732841182,5.24,234.56,234.46,9.78226072]
[1759732841684,5.24,234.56,234.47,3.8372]
[1759732841883,5.24,234.56,234.46,11.37382046]
[1759732842072,5.24,234.56,234.46,7.89]
[1759732843583,3.836,234.55,234.46,7.89]
[1759732844180,3.836,234.55,234.46,11.7274]
[1759732846080,3.8363,234.53,234.46,7.89]
[1759732847087,3.8366,234.51,234.43,3.48382046]
[1759732847280,3.8366,234.51,234.41,11.37382046]
[1759732847582,86.6166,234.51,234.41,11.37382046]
[1759732848182,86.6166,234.51,234.42,3.8381]
[1759732848478,3.8369,234.49,234.42,3.8381]
[1759732849287,3.8369,234.49,234.41,11.37382046]
[1759732850087,3.8372,234.48,234.41,11.37382046]
[1759732850381,5.22,234.49,234.41,3.48382046]
[1759732850687,5.22,234.49,234.4,3.48382046]
[1759732851283,5.22,234.49,234.39,3.48382046]
[1759732851678,3.8374,234.46,234.39,3.48382046]
[1759732852186,3.8374,234.46,234.4,3.48382046]
[1759732853189,9.0574,234.46,234.38,7.32242046]
[1759732853382,3.8378,234.44,234.37,7.19]
[1759732853590,5.22,234.46,234.37,7.19]
[1759732854187,5.22,234.46,234.38,3.8386]
[1759732854782,1.89226072,234.43,234.36,3.48382046]
[1759732854982,5.22,234.42,234.33,7.19]
[1759732855289,5.22,234.38,234.29,7.19]
[1759732855689,3.8391,234.36,234.29,7.19]
[1759732856492,5.22,234.38,234.29,11.0302]
[1759732858493,81.1,234.38,234.29,11.0302]
[1759732859294,1.21224348,234.35,234.31,3.8399]
[1759732859496,1.21224348,234.35,234.32,7.19]
[1759732860792,1.21224348,234.35,234.27,7.19]
[1759732861395,6.43224348,234.38,234.28,7.19]
[1759732862193,1.21224348,234.39,234.29,1.21224348]
[1759732862489,5.22,234.42,234.32,59.7289]
[1759732862692,1.21224348,234.42,234.33,7.19]
[1759732863294,1.21224348,234.39,234.33,7.19]
[1759732864296,1.21224348,234.39,234.33,11.0294]
[1759732864494,6.43224348,234.42,234.33,7.19]
[1759732864694,1.21224348,234.39,234.33,7.19]
[1759732866093,6.43224348,234.39,234.3,3.8399]
[1759732866293,6.43224348,234.39,234.3,11.0299]
[1759732867196,3.839,234.37,234.3,7.19]
[1759732867899,3.839,234.37,234.3,11.03]
[1759732868197,3.839,234.37,234.3,7.19]
[1759732869499,3.8392,234.35,234.28,11.0303]
[1759732875203,5.05174348,234.34,234.26,3.8407]
[1759732875601,1.21224348,234.34,234.26,3.8407]
[1759732876701,3.8398,234.32,234.26,3.8407]
[1759732877597,3.8398,234.32,234.24,11.031]
[1759732877998,9.07,234.31,234.24,11.031]
[1759732878401,6.44224348,234.34,234.25,3.8407]
[1759732878600,9.0695,234.34,234.24,7.19]
[1759732878912,9.0695,234.34,234.24,8.40224348]
[1759732879410,5.23,234.34,234.27,3.8404]
[1759732879611,5.23,234.34,234.27,11.4704]
[1759732882716,5.05194348,234.33,234.27,11.4704]
[1759732883012,5.23,234.32,234.25,3.8408]
[1759732883415,5.23,234.32,234.26,7.63]
[1759732883611,1.21224348,234.33,234.26,7.63]
[1759732884517,3.8397,234.33,234.26,11.4706]
[1759732885328,1.21224348,234.34,234.27,3.8404]
[1759732885818,5.23,234.36,234.24,7.63]
[1759732886023,5.23,234.38,234.3,7.63]
[1759732886228,1.21224348,234.36,234.3,7.63]
[1759732887417,3.8392,234.36,234.3,11.4699]
[1759732888122,3.8392,234.36,234.3,7.63]
[1759732889228,3.8392,234.36,234.31,3.8398]
[1759732889522,3.8392,234.36,234.32,7.63]
[1759732891530,9.0692,234.36,234.32,7.63]
[1759732892128,3.8394,234.35,234.32,7.63]
[1759732892330,1.21224348,234.35,234.28,7.63]
[1759732892930,5.05154348,234.35,234.28,11.4703]
[1759732893125,5.05154348,234.35,234.28,7.63]
[1759732893936,1.21224348,234.35,234.29,3.8401]
[1759732894130,1.21224348,234.35,234.28,7.63]
[1759732894636,1.21224348,234.35,234.3,3.8399]
[1759732894835,1.21224348,234.35,234.31,7.46]
[1759732895633,6.44224348,234.35,234.31,7.46]
[1759732897634,1.21224348,234.35,234.29,7.46]
[1759732898138,1.21224348,234.35,234.29,10.94382046]
[1759732898537,1.21224348,234.35,234.3,3.8399]
[1759732898738,1.21224348,234.35,234.31,7.46]
[1759732899244,1.21224348,234.35,234.3,3.8399]
[1759732899437,1.21224348,234.35,234.31,7.46]
[1759732899830,1.21224348,234.35,234.3,7.32372046]
[1759732900036,5.23,234.37,234.31,7.46]
[1759732900236,6.44224348,234.37,234.31,7.46]
[1759732901043,10.28124348,234.37,234.32,3.8396]
[1759732901238,10.28124348,234.37,234.33,7.46]
[1759732902338,10.28124348,234.37,234.32,7.46]
[1759732902544,6.44224348,234.37,234.31,7.46]
[1759732902845,1.21224348,234.37,234.31,7.46]
[1759732903644,1.21224348,234.37,234.32,3.8396]
[1759732903945,1.21224348,234.37,234.33,7.46]
[1759732904141,1.21224348,234.37,234.32,3.8396]
[1759732904343,1.21224348,234.37,234.33,7.46]
[1759732904645,6.44224348,234.4,234.34,7.46]
[1759732904845,5.23,234.4,234.34,7.46]
[1759732905140,5.05024348,234.43,234.32,3.48382046]
[1759732905339,5.05024348,234.43,234.34,7.46]
[1759732906547,5.05024348,234.43,234.37,3.8388]
[1759732906746,5.05024348,234.43,234.37,11.2988]
[1759732907847,3.8382,234.42,234.37,3.8388]
[1759732908046,3.8382,234.42,234.38,7.66]
[1759732908443,5.23,234.46,234.38,7.66]
[1759732908444,5.23,234.46,234.38,11.4986]
[1759732908747,1.21224348,234.45,234.37,7.66]
[1759732909147,1.21224348,234.45,234.39,3.8384]
[1759732909743,1.21224348,234.45,234.39,11.4984]
[1759732910143,5.23,234.44,234.36,3.48382046]
[1759732910350,1.21224348,234.43,234.35,11.14382046]
[1759732910546,1.21224348,234.43,234.36,11.14382046]
[1759732910749,1.21224348,234.43,234.37,7.66]
[1759732911550,1.21224348,234.43,234.37,14.98252046]
[1759732912054,1.21224348,234.43,234.37,7.32252046]
[1759732912447,111.38964348,234.46,234.38,11.4986]
[1759732916556,1.21224348,234.5,234.38,8.87224348]
[1759732916759,1.21224348,234.5,234.4,7.66]
[1759732917654,5.04904348,234.5,234.43,3.8378]
[1759732920255,1.21224348,234.47,234.42,7.66]
[1759732920451,1.21224348,234.44,234.4,3.8383]
[1759732920754,1.21224348,234.44,234.4,7.66]
[1759732920947,5.23,234.43,234.36,11.14382046]
[1759732921146,5.23,234.43,234.36,7.66]
[1759732921853,9.0683,234.41,234.36,7.66]
[1759732922253,5.23,234.41,234.36,7.66]
[1759732923552,5.23,234.41,234.35,7.66]
[1759732924349,5.73115732,234.44,234.35,7.66]
[1759732924656,112.01115732,234.44,234.35,7.66]
[1759732924855,112.01115732,234.44,234.35,11.4992]
[1759732925056,3.838,234.43,234.35,11.4992]
[1759732928556,1.89325732,234.48,234.34,59.7243]
[1759732928758,5.23,234.5,234.38,7.66]
[1759732929062,3.8363,234.53,234.46,3.8373]
[1759732929859,5.23,234.55,234.46,3.8373]
[1759732930162,310.48,234.56,234.48,7.66]
[1759732930562,310.48,234.56,234.48,11.4969]
[1759732930864,310.48,234.56,234.48,7.66]
[1759732931158,5.23,234.55,234.42,7.66]
[1759732932566,3.8362,234.54,234.44,3.8376]
[1759732932765,3.8362,234.54,234.45,7.66]
[1759732933663,3.8364,234.53,234.45,11.4974]
[1759732935864,3.8364,234.53,234.46,3.8373]
[1759732936061,9.066,234.55,234.45,7.66]
[1759732936465,115.306,234.55,234.45,7.66]
[1759732936666,9.066,234.55,234.45,7.66]
[1759732936867,115.306,234.55,234.45,7.66]
[1759732937064,3.8362,234.54,234.47,3.8371]
[1759732937574,5.23,234.54,234.45,7.66]
[1759732937766,5.24,234.5,234.41,7.8]
[1759732937973,5.24,234.48,234.41,7.8]
[1759732939568,111.46,234.53,234.41,7.8]
[1759732939777,111.46,234.53,234.42,7.8]
[1759732939971,111.46,234.53,234.47,11.6371]
[1759732941074,5.24,234.53,234.47,11.6371]
[1759732941872,5.24,234.53,234.47,7.8]
[1759732942376,5.24,234.53,234.47,11.6372]
[1759732943166,9.0764,234.53,234.47,7.8]
[1759732943373,5.24,234.53,234.42,7.8]
[1759732944276,3.8366,234.51,234.42,7.8]
[1759732945674,3.8366,234.51,234.44,3.8377]
[1759732946876,3.8369,234.5,234.42,11.638]
[1759732947071,9.0769,234.5,234.42,11.638]
[1759732947273,9.0769,234.5,234.42,7.8]
[1759732947473,106.2,234.49,234.38,3.51214986]
[1759732947776,61.57545732,234.51,234.38,3.51214986]
[1759732947777,111.44,234.48,234.38,7.8]
[1759732948478,3.8376,234.45,234.38,7.8]
[1759732948873,9.0776,234.45,234.38,7.8]
[1759732949670,9.0776,234.45,234.38,11.6386]
[1759732950872,5.24,234.45,234.39,3.8384]
[1759732951080,106.2,234.48,234.38,7.8]
[1759732951270,106.2,234.48,234.38,11.31214986]
[1759732951472,3.8374,234.47,234.39,3.8384]
[1759732951671,106.2,234.48,234.39,3.8384]
[1759732951876,106.2,234.48,234.38,7.8]
[1759732952282,110.0372,234.48,234.41,3.8381]
[1759732952481,106.2,234.48,234.38,7.8]
[1759732953482,106.2,234.48,234.38,11.31214986]
[1759732953681,3.8374,234.47,234.39,3.8385]
[1759732953877,106.2,234.48,234.38,11.31214986]
[1759732954182,108.09325732,234.48,234.38,7.8]
[1759732954379,5.24,234.47,234.38,7.8]
[1759732954784,5.24,234.47,234.37,3.51214986]
[1759732955082,108.09325732,234.48,234.33,7.28]
[1759732955083,1.89325732,234.44,234.35,3.51214986]
[1759732955279,5.24,234.43,234.33,3.51214986]
[1759732955483,5.24,234.39,234.32,3.51214986]
[1759732955681,5.24,234.39,234.3,3.51214986]
[1759732956485,5.24,234.39,234.29,10.79214986]
[1759732956686,3.8388,234.38,234.29,10.79214986]
[1759732957085,3.8388,234.38,234.3,3.8399]
[1759732958085,3.8388,234.38,234.29,10.79214986]
[1759732958887,5.24,234.39,234.3,10.79214986]
[1759732959489,3.8387,234.38,234.3,7.28]
[1759732961880,3.839,234.37,234.3,7.28]
[1759732962085,5.24,234.39,234.27,3.5184308]
[1759732962287,1.89325732,234.4,234.26,10.7984308]
[1759732962686,5.24,234.39,234.26,10.7984308]
[1759732962886,1.89325732,234.4,234.26,10.7984308]
[1759732963095,5.24,234.39,234.26,10.7984308]
[1759732963481,1.89325732,234.4,234.26,10.7984308]
[1759732963686,9.0793,234.35,234.26,14.6390308]
[1759732964193,9.0793,234.35,234.27,3.8404]
[1759732966586,5.24,234.35,234.27,3.8404]
[1759732966786,5.24,234.35,234.26,7.28]
[1759732967282,5.24,234.35,234.29,3.8401]
[1759732968694,5.24,234.35,234.29,11.1201]
[1759732970393,5.24,234.35,234.29,7.28]
[1759732970692,5.24,234.35,234.26,3.8405]
[1759732971484,9.0793,234.35,234.26,3.8405]
[1759732971690,5.24,234.35,234.26,3.8405]
[1759732971886,7.13325732,234.35,234.26,3.8405]
[1759732972286,5.25,234.33,234.25,7.28]
[1759732972891,3.8398,234.32,234.25,7.28]
[1759732973093,1.89325732,234.35,234.25,7.28]
[1759732973094,5.25,234.34,234.25,7.28]
[1759732973390,1.89325732,234.35,234.25,7.28]
[1759732973592,3.84,234.31,234.25,7.28]
[1759732974100,3.84,234.31,234.22,3.8413]
[1759732974294,5.25,234.3,234.22,11.1213]
[1759732974497,5.25,234.3,234.24,3.841]
[1759732975097,5.25,234.3,234.22,11.1213]
[1759732975299,5.25,234.3,234.22,7.28]
[1759732975796,5.25,234.3,234.24,3.8409]
[1759732976197,5.25,234.3,234.22,7.28]
[1759732977802,9.0902,234.3,234.22,7.28]
[1759732978102,5.25,234.3,234.22,7.28]
[1759732978594,5.25,234.27,234.19,16.63270191]
[1759732979101,5.25,234.27,234.21,3.8414]
[1759732979802,9.0894,234.34,234.19,12.79090191]
[1759732980003,49.4494,234.34,234.2,7.28]
[1759732980309,47.50325732,234.34,234.2,7.28]
[1759732980601,7.14325732,234.34,234.2,7.28]
[1759732980800,3.8397,234.33,234.25,11.1207]
[1759732981000,7.14325732,234.34,234.25,7.28]
[1759732982311,10.98275732,234.34,234.27,3.8404]
[1759732982506,7.14325732,234.34,234.27,3.8404]
[1759732982702,5.25,234.34,234.28,7.28]
[1759732983001,1.21245432,234.33,234.28,7.28]
[1759732983306,5.25,234.36,234.28,3.8402]
[1759732983503,6.46245432,234.36,234.29,7.28]
[1759732983709,1.21245432,234.36,234.29,7.28]
[1759732984006,1.21245432,234.36,234.3,3.8399]
[1759732984505,1.21245432,234.36,234.29,7.28]
[1759732985702,5.05165432,234.36,234.29,7.28]
[1759732986703,3.8394,234.34,234.26,7.28]
[1759732986896,370.2902,234.4,234.26,7.28]
[1759732986897,5.25,234.35,234.26,7.28]
[1759732987104,1.21245432,234.33,234.26,7.28]
[1759732987602,5.25,234.35,234.27,7.28]
[1759732989410,9.0893,234.35,234.27,11.1204]
[1759732989705,5.25,234.35,234.27,11.1204]
[1759732990913,5.25,234.35,234.27,7.28]
[1759732991707,5.25,234.35,234.27,11.1205]
[1759732993011,5.25,234.35,234.28,3.8402]
[1759732993310,1.21245432,234.33,234.27,11.1205]
[1759732993515,6.46245432,234.33,234.27,7.28]
[1759732994216,6.46245432,234.33,234.25,3.50716133]
[1759732994415,5.25,234.29,234.26,3.8405]
[1759732995103,1.21245432,234.3,234.26,3.8405]
[1759732995104,1.21245432,234.3,234.26,11.1205]
[1759732995309,6.46245432,234.31,234.27,7.28]
[1759732995514,1.21245432,234.31,234.28,11.1204]
[1759732995715,5.25,234.35,234.28,11.1204]
[1759732995910,6.46245432,234.32,234.28,11.1204]
[1759732996112,5.25,234.31,234.28,3.8404]
[1759732996314,5.25,234.31,234.26,3.8406]
[1759732996615,5.25,234.31,234.27,7.28]
[1759732997015,1.21245432,234.32,234.26,11.1206]
[1759732997410,1.21245432,234.32,234.28,7.28]
[1759732997814,6.45245432,234.32,234.28,7.28]
[1759732999018,1.21245432,234.35,234.29,7.26]
[1759732999314,68.44313998,234.48,234.29,7.26]
[1759732999315,59.6948,234.46,234.29,7.26]
[1759732999515,1.21245432,234.39,234.29,10.78132421]
[1759732999818,1.21245432,234.39,234.32,3.8396]
[1759733000420,1.21245432,234.39,234.3,3.84]
[1759733000713,1.21245432,234.36,234.3,3.84]
[1759733001108,1.21245432,234.36,234.29,10.78132421]
[1759733001312,1.21245432,234.36,234.26,4.67648784]
[1759733001313,5.24,234.36,234.28,3.52132421]
[1759733001520,5.24,234.32,234.28,3.52132421]
[1759733001720,5.24,234.32,234.28,10.78132421]
[1759733002122,1.21245432,234.33,234.29,7.26]
[1759733002812,1.21245432,234.33,234.28,3.52132421]
[1759733003014,1.21245432,234.36,234.29,3.8401]
[1759733003221,1.21245432,234.36,234.3,7.26]
[1759733003722,5.24,234.34,234.3,7.26]
[1759733004518,5.05165432,234.35,234.29,3.52132421]
[1759733004721,5.05165432,234.35,234.29,10.78132421]
[1759733005018,3.8392,234.35,234.29,10.78132421]
[1759733005220,5.05165432,234.35,234.29,10.78132421]
[1759733005421,10.29165432,234.35,234.31,7.26]
[1759733005821,1.21245432,234.35,234.31,7.26]
[1759733006922,10.29175432,234.35,234.31,7.26]
[1759733008226,5.05175432,234.35,234.31,7.26]
[1759733008425,1.21245432,234.35,234.3,3.52132421]
[1759733008726,6.45245432,234.35,234.31,7.26]
[1759733010329,6.45245432,234.35,234.3,3.52132421]
[1759733010330,1.21245432,234.35,234.3,3.52132421]
[1759733010531,1.21245432,234.35,234.32,7.26]
[1759733010826,6.45245432,234.35,234.31,3.8398]
[1759733011128,5.24,234.34,234.3,7.26]
[1759733012230,5.05185432,234.35,234.3,7.26]
[1759733012428,5.24,234.34,234.3,7.26]
[1759733012632,5.05185432,234.35,234.3,7.26]
[1759733012827,5.24,234.34,234.3,7.26]
[1759733014326,3.8395,234.34,234.3,7.26]
[1759733014527,9.0795,234.34,234.3,7.26]
[1759733015432,5.24,234.34,234.3,7.26]
[1759733016328,5.24,234.34,234.31,7.94]
[1759733020437,3.8387,234.39,234.3,7.94]
[1759733020636,1.21245432,234.37,234.3,7.94]
[1759733021638,1.21245432,234.37,234.31,3.8398]
[1759733021838,1.21245432,234.38,234.3,11.46132421]
[1759733022038,1.21245432,234.38,234.31,7.94]
[1759733023044,1.21245432,234.38,234.32,3.8396]
[1759733026436,5.05125432,234.38,234.32,3.8396]
[1759733027539,1.21245432,234.38,234.33,3.8394]
[1759733027735,5.24,234.4,234.31,3.52132421]
[1759733027936,1.21245432,234.42,234.34,3.52132421]
[1759733028138,1.21245432,234.42,234.35,7.84]
[1759733028532,5.05065432,234.42,234.35,15.20052421]
[1759733032745,3.8383,234.41,234.35,11.36132421]
[1759733033044,6.45245432,234.38,234.35,11.36132421]
[1759733033239,5.24,234.37,234.33,3.52132421]
[1759733033440,5.24,234.37,234.33,11.36132421]
[1759733033944,6.45245432,234.35,234.31,11.36132421]
[1759733034546,1.21245432,234.35,234.31,3.52132421]
[1759733034844,5.24,234.34,234.31,3.52132421]
[1759733035649,9.0795,234.34,234.31,3.52132421]
[1759733036148,3.8395,234.34,234.3,3.52132421]
[1759733036348,5.24,234.33,234.3,3.52132421]
[1759733037144,5.24,234.33,234.3,11.36132421]
[1759733037349,3.8395,234.34,234.31,7.84]
[1759733038148,107.17245432,234.35,234.32,7.84]
[1759733038347,3.8391,234.36,234.31,3.52132421]
[1759733038653,111.01115432,234.38,234.32,7.84]
[1759733039452,3.839,234.37,234.31,11.36132421]
[1759733039648,107.17245432,234.38,234.31,11.36132421]
[1759733039855,1.21245432,234.35,234.3,3.52132421]
[1759733040053,3.8397,234.33,234.3,3.52132421]
[1759733040255,9.0797,234.33,234.3,3.52132421]
[1759733041051,5.24,234.3,234.29,3.52132421]
[1759733041257,3.8399,234.31,234.29,3.52132421]
[1759733041450,1.21245432,234.32,234.29,3.52132421]
[1759733041657,1.21245432,234.32,234.29,11.36132421]
[1759733043356,6.45245432,234.32,234.29,11.36132421]
[1759733044157,5.24,234.32,234.29,11.36132421]
[1759733045754,105.94,234.33,234.3,7.84]
[1759733046153,105.94,234.33,234.29,3.52132421]
[1759733046353,105.94,234.33,234.3,7.84]
[1759733046554,111.18,234.33,234.3,7.84]
[1759733047155,105.94,234.33,234.28,3.52132421]
[1759733047556,105.94,234.33,234.27,3.52132421]
[1759733047557,5.24,234.32,234.27,3.52132421]
[1759733047757,107.83450314,234.33,234.27,3.52132421]
[1759733048061,5.24,234.28,234.25,11.36132421]
[1759733049066,5.24,234.27,234.25,3.52132421]
[1759733049466,111.16,234.27,234.25,3.52132421]
[1759733049857,5.24,234.26,234.25,3.52132421]
[1759733050262,5.24,234.26,234.24,3.52132421]
[1759733050457,105.92,234.27,234.24,3.52132421]
[1759733050862,105.92,234.27,234.24,11.36132421]
[1759733051163,1.89450314,234.37,234.26,7.84]
[1759733051364,48.74,234.36,234.26,11.36132421]
[1759733051968,5.24,234.36,234.26,11.36132421]
[1759733052165,96.9,234.35,234.26,11.36132421]
[1759733052466,96.9,234.35,234.26,7.84]
[1759733052664,3.8395,234.34,234.26,11.6805]
[1759733052867,105.92,234.33,234.27,3.52132421]
[1759733053265,105.92,234.33,234.27,7.36172421]
[1759733053568,105.92,234.33,234.28,3.52132421]
[1759733054570,105.92,234.34,234.28,15.20152421]
[1759733055270,5.24,234.36,234.29,3.8401]
[1759733055470,96.58,234.35,234.29,3.8401]
[1759733059372,5.24,234.34,234.29,3.8401]